Cogmind - Beta 13 X1 @@@ ROGUE MODE // 2023.08.02 @ 20:43:29 Player: LU-1G1 Result: Destroyed by NV-XEE(R) with Subdweller Laser Performance ------------- Evolutions (0) 0 Regions Visited (2) 400 Robots Destroyed (24) 120 Value Destroyed (606) 606 Prototype IDs (0) 0 Alien Tech Used (0) 0 Bonus (0) 0 TOTAL SCORE: 1126 Bonus ------- None Cogmind --------- Core Integrity 0/250 Matter 300/300 Energy 99/100 System Corruption 1% Temperature Cool (6) Movement Core (50) Location -10/Subcaves Parts ------- > --- POWER (1) -------- (None) > --- PROPULSION (2) --- (None) > --- UTILITY (2) ------ (None) > --- WEAPON (2) ------- (None) > --- INVENTORY (5) ---- Light Treads High-capacity Matter Pod (200) Assault Rifle Grenade Launcher Multitool Peak State ------------ > --- POWER ------------ Subdweller Power Source > --- PROPULSION ------- Light Treads Light Treads > --- UTILITY ---------- Scrap Shield > --- WEAPON ----------- Heavy EM Pulse Gun Heavy EM Pulse Gun > --- INVENTORY -------- Light Treads High-capacity Matter Pod Assault Rifle Grenade Launcher Multitool [Rating: 12] Favorites ----------- Power Light Ion Engine Engine Light Ion Engine Propulsion Light Treads Treads Light Treads Utility Scrap Shield Device Seismic Detector Storage Large Storage Unit Protection Scrap Shield Weapon Heavy EM Pulse Gun Energy Gun Heavy EM Pulse Gun Ballistic Gun Assault Rifle Launcher Grenade Launcher Build | -11 -10 -10 ------- Run | Jun Mat Sub Slots Evolved . | . . . Power . | . . . Propulsion . | . . . Utility . | . . . Weapon . | . . . Parts Attached 24 | 6 7 11 Power 3 | 1 1 1 Engine 3 | 1 1 1 Core . | . . . Reactor . | . . . Propulsion 5 | 1 4 . Treads 5 | 1 4 . Leg . | . . . Wheel . | . . . Hover . | . . . Flight . | . . . Utility 4 | 2 1 1 Device 1 | 1 . . Storage 2 | 1 1 . Processor . | . . . Hackware . | . . . Protection 1 | . . 1 Artifact . | . . . Weapon 12 | 2 1 9 Energy Gun 5 | 1 . 4 Energy Cannon . | . . . Ballistic Gun 5 | 1 1 3 Ballistic Cannon . | . . . Launcher 2 | . . 2 Special Weapon . | . . . Impact Weapon . | . . . Slashing Weapon . | . . . Piercing Weapon . | . . . Special Melee Weapon . | . . . Unidentified Prototypes . | . . . Parts Lost 9 | . 2 7 Power 2 | . 1 1 Propulsion 2 | . . 2 Utility 2 | . . 2 Weapon 3 | . 1 2 Highest Loss Streak 5 | . 2 5 To Critical Strikes . | . . . Average Slot Usage (%) 87 | . 96 80 Engine 12 | . 13 11 Treads 26 | . 24 27 Device 6 | . 14 . Storage 6 | . 14 . Protection 7 | . . 12 Energy Gun 18 | . 12 24 Ballistic Gun 7 | . 15 1 Naked Turns 11 | . . 11 Heaviest Build 27 | 12 27 27 Greatest Support 40 | 20 40 40 Greatest Overweight (x) 1 | . . 1 Average Overweight (x) . | . . . Largest Inventory Capacity 15 | 8 15 15 Average Capacity 8 | 7 12 5 Most Carried 15 | 7 15 13 Average Carried 7 | 5 11 5 Final Capacity 15 | 8 15 5 Final Carried 13 | 7 13 5 Class Distribution -------------------- 100% | Mutant Dominant Class ---------------- Mutant | -10/Materials Mutant | -10/Subcaves Resources | -11 -10 -10 ----------- Run | Jun Mat Sub Matter Collected 821 | 272 325 224 Remotely . | . . . Salvage Created 870 | 126 333 411 Parts 59 | 10 22 27 Haulers Intercepted 1 | . 1 . Recyclers Shooed 1 | 1 . . Parts Field Recycled . | . . . Retrieved Matter . | . . . Parts Self-Destructed 7 | . . 7 Prevented 1 | . . 1 Kills | -11 -10 -10 ------- Run | Jun Mat Sub Combat Hostiles Destroyed 19 | . 11 8 Guns 17 | . 11 6 AOE 1 | . . 1 Classes Destroyed 9 | 2 4 3 Tunneler 2 | 2 . . Hauler 1 | . 1 . Recycler 1 | 1 . . Watcher 1 | . 1 . Swarmer 6 | . 6 . Grunt 5 | . 5 . Sentry 1 | . . 1 Artisan 1 | . . 1 Subdweller 7 | . . 7 Best Kill Streak 3 | 3 2 2 Combat Bots Only 2 | . 2 2 Max Kills in Single Turn 1 | 1 1 1 Gunslinging . | . . . Exploded 1 | . . 1 Melee . | . . . Uniques/NPCs Destroyed . | . . . Combat | -11 -10 -10 -------- Run | Jun Mat Sub Damage Taken 1472 | . 446 1026 Core 250 | . 63 187 Absorbed by Shields . | . . . Regen/Repaired (Parts) 163 | . 163 . Core Remaining (%) 100 | 100 . . Volleys Fired 86 | 6 39 41 Largest 2 | 2 2 2 Hottest 90 | 60 60 90 Shots Fired 154 | 12 78 64 Gun 151 | 12 78 61 Cannon . | . . . Launcher 3 | . . 3 Special . | . . . Kinetic 63 | 6 44 13 Thermal 40 | 6 34 . Explosive 3 | . . 3 Electromagnetic 48 | . . 48 Robot Hit Streak 25 | 2 15 25 Robot Miss Streak 3 | 2 3 3 Penetration Max . | . . . Secondary Targets . | . . . Shots Hit Robots 109 | 5 55 49 Core Hits 43 | 4 22 17 Critical Kills . | . . . Critical Parts Destroyed 1 | . 1 . Critical Strikes 1 | . 1 . Destroy 1 | . 1 . Melee Attacks . | . . . Impact . | . . . Slashing . | . . . Piercing . | . . . Sneak Attacks . | . . . Combat Hostiles . | . . . Follow-up Attacks . | . . . Damage Inflicted 1451 | 62 665 724 Guns 1292 | 62 659 571 Cannons . | . . . Explosions 153 | . . 153 Melee . | . . . Ramming 6 | . 6 . Kinetic 585 | 38 390 157 Thermal 341 | 24 269 48 Explosive 105 | . . 105 Electromagnetic 414 | . . 414 Impact . | . . . Slashing . | . . . Piercing . | . . . Highest Corruption 1 | . 1 1 Average Corruption 1 | . 1 1 Corruption Purged . | . . . Corruption Blocked . | . . . Effects 12 | . 1 11 Message Errors 5 | . . 5 Matter Fused 1 | . . 1 Heat Flow Errors 2 | . . 2 Energy Discharges 2 | . . 2 Data Loss (minor) 1 | . 1 . Data Loss (major) 1 | . . 1 Overload Shots . | . . . Overflow Damage . | . . . Projectiles . | . . . Explosions . | . . . Melee . | . . . Knockbacks . | . . . Impact . | . . . Kinetic . | . . . Secondary . | . . . Self-Inflicted Damage 9 | . . 9 Shots 1 | . . 1 Rammed 3 | . 3 . Targets Rammed 3 | . 3 . Kicked . | . . . Crushed . | . . . Highest Temperature 249 | . 36 249 Average Temperature 36 | . 14 113 Received Heat Transfer 381 | . 204 177 Siege Activations . | . . . Robots Corrupted 1 | . . 1 Combat Hostiles 1 | . . 1 Parts Fried 3 | . . 3 Impact Corruptions . | . . . Robots Melted . | . . . Combat Hostiles . | . . . Parts Melted . | . . . Heat Transferred 675 | 50 575 50 Parts Sabotaged . | . . . Parts Stolen . | . . . Parts Stripped . | . . . Power Chain Reactions 1 | . . 1 Missiles Intercepted . | . . . Alert | -11 -10 -10 ------- Run | Jun Mat Sub Peak Influence 364 | 15 364 . Initial 9 | . 9 . Average 142 | 5 155 . Maximum Alert Level 1 | . 1 . Low Security (%) 63 | 100 60 . Level 1 36 | . 39 . Level 2 . | . . . Level 3 . | . . . Level 4 . | . . . Level 5 . | . . . High Security . | . . . Max Security . | . . . Squads Dispatched 2 | . 2 . Investigation 1 | . 1 . Extermination . | . . . Reinforcement 1 | . 1 . Assault . | . . . Garrison . | . . . Intercept . | . . . Searches Triggered . | . . . Construction Impeded . | . . . Haulers Reinforced . | . . . Active Scanning Responses . | . . . Cargo Convoy Interrupts . | . . . Stealth | -11 -10 -10 --------- Run | Jun Mat Sub Distress Signals 2 | . 2 . Communications Jammed . | . . . Distress Signals . | . . . Times Spotted 40 | . 29 11 Peak Tracking Total 5 | . 5 3 Tactical Retreats 6 | . 5 1 Traps | -11 -10 -10 ------- Run | Jun Mat Sub Traps Triggered . | . . . Indirectly . | . . . Trap Hack Attempts . | . . . Triggered . | . . . Disarmed 4 | . 4 . Reprogrammed . | . . . Reused . | . . . Traps Extracted . | . . . Installed . | . . . Triggered . | . . . Machines | -11 -10 -10 ---------- Run | Jun Mat Sub Machines Disabled 1 | . 1 . Max in Single Turn 1 | . 1 . Machines Repaired . | . . . Machines Sabotaged . | . . . Overloaded Fab Kills . | . . . Hacking | -11 -10 -10 --------- Run | Jun Mat Sub Machines Accessed 8 | . 8 . Terminals 7 | . 7 . Fabricators . | . . . Repair Stations 1 | . 1 . Recycling Units . | . . . Scanalyzers . | . . . Garrison Access . | . . . Total Hacks 32 | . 32 . Successful 14 | . 14 . Failed 18 | . 18 . Catastrophic 2 | . 2 . Database Lockouts . | . . . Manual 15 | . 15 . Terminals 24 | . 24 . Fabricators . | . . . Repair Stations 8 | . 8 . Recycling Units . | . . . Scanalyzers . | . . . Garrison Access . | . . . Terminal Hacks 9 | . 9 . Part Schematic 1 | . 1 . Robot Analysis 4 | . 4 . Disarm Traps 1 | . 1 . Transport Status 1 | . 1 . Hauler Manifests 1 | . 1 . Zone Layout 1 | . 1 . Fabricator Hacks . | . . . Repair Station Hacks 4 | . 4 . Scan Component 2 | . 2 . Repair 2 | . 2 . Recycling Unit Hacks . | . . . Scanalyzer . | . . . Garrison Access Hacks . | . . . Unauthorized Hacks 1 | . 1 . Terminals 1 | . 1 . Assimilate 1 | . 1 . Fabricators . | . . . Repair Stations . | . . . Recycling Units . | . . . Scanalyzers . | . . . Garrison Access . | . . . Data Cores Recovered . | . . . Used . | . . . Hacking Detections 8 | . 8 . Full Trace Events 2 | . 2 . Feedback Events 1 | . 1 . Corruption 1 | . 1 . Feedback Blocked . | . . . Robot Schematics Acquired . | . . . Robots Built . | . . . Authchips . | . . . Time . | . . . Total Robot Build Rating . | . . . Part Schematics Acquired 1 | . 1 . Parts Built . | . . . Authchips . | . . . Time . | . . . Total Part Build Rating . | . . . Parts Repaired 2 | . 2 . Time 52 | . 52 . Parts Recycled . | . . . Recycled Matter . | . . . Retrieved Matter . | . . . Retrieved Components . | . . . Parts Scanalyzed . | . . . Part Schematics Acquired . | . . . Parts Damaged . | . . . Bothacking | -11 -10 -10 ------------ Run | Jun Mat Sub Used RIF Installer . | . . . Robots Hacked . | . . . Non-combat . | . . . Combat . | . . . Robot Hacks Applied . | . . . Relay Couplers Released . | . . . Fabnet Peak Effective % . | . . . Robots Rewired . | . . . Allies Hacked . | . . . Hacks Repelled . | . . . Allies | -11 -10 -10 -------- Run | Jun Mat Sub Total Allies 1 | . 1 . Largest Group 1 | . 1 . Highest-Rated Group 10 | . 10 . Highest-Rated Ally 10 | . 10 . Total Orders . | . . . Ally Attacks . | . . . Total Damage . | . . . Kills . | . . . Allies Corrupted 1 | . 1 . Allies Melted . | . . . Intel | -11 -10 -10 ------- Run | Jun Mat Sub Robot Analysis Total 4 | . 4 . Derelict Logs Recovered . | . . . Drone Launches . | . . . Drone Recoveries . | . . . Exploration | -11 -10 -10 ------------- Run | Jun Mat Sub Turns Passed 2336 | 96 1012 1228 Spaces Moved 1205 | 45 468 692 Core 38 | 8 . 30 Treads 1167 | 37 468 662 Legs . | . . . Wheels . | . . . Hover . | . . . Flight . | . . . Fastest Speed 50 | 50 160 50 Average Speed 156 | 140 160 155 Slowest Speed 160 | 160 160 160 Overloaded Moves . | . . . Propulsion Burnouts . | . . . Robots Hopped . | . . . Cave-ins Triggered . | . . . Exploration Rate (%) 42 | 3 69 54 Regions Visited 2 Branch Regions 1 Pre-discovered Areas 1 | . . 1 Known Exits Taken . | . . . Unknown Exits Taken 2 | 1 1 . Scrap Searched 2 | . . 2 Spaces Dug . | . . . Terrain Destroyed 19 | . . 19 Melee . | . . . Projectile . | . . . AOE 19 | . . 19 Terrain Rammed . | . . . Walls Destroyed . | . . . Machines Disabled . | . . . Actions | -11 -10 -10 --------- Run | Jun Mat Sub Total 1489 | 63 652 774 Wait 142 | . 124 18 Move 1203 | 44 467 692 Hop . | . . . Pick Up 19 | 7 10 2 Fast Attach 10 | 6 2 2 Attach 3 | . 3 . Detach . | . . . Swap 11 | . 2 9 Drop 6 | . 2 4 Fire 86 | 6 39 41 Melee . | . . . Ram . | . . . Kick . | . . . Crush 3 | . 3 . Escape Stasis . | . . . Rewire . | . . . Trap . | . . . Miscellaneous 6 | . . 6 Route ------- -11/Junkyard -10/Materials (discovered 4 exits: [*Mat x2] / [*Min] / [*Sub]) -10/Subcaves (discovered 2 exits: [*Mat x2]) History --------- Turn | Location | Event 8 | -11/Junkyard | Discovered new exit (range 16) 97 | -11/Junkyard | Entered Materials 300 | -10/Materials | Build established: Mutant 327 | -10/Materials | Discovered new exit (range 7) 644 | -10/Materials | Discovered new exit (range 16) 855 | -10/Materials | Repaired Lgt. Treads 883 | -10/Materials | Repaired Lgt. Treads 888 | -10/Materials | Discovered new exit (range 15) 1086 | -10/Materials | Discovered new exit (range 6) 1109 | -10/Materials | Entered Subcaves 1510 | -10/Subcaves | Learned location of Zion (-7) 1510 | -10/Subcaves | Met a Zionite searching for "candidates" 1595 | -10/Subcaves | Discovered new exit (range 6) 1728 | -10/Subcaves | Discovered new exit (range 14) 1870 | -10/Subcaves | A swath of the cavern ceiling suddenly collapsed 1928 | -10/Subcaves | Shifting Twisted Machinery released Scrap Shield 1933 | -10/Subcaves | Shifting Twisted Machinery released Sub. Optics 2232 | -10/Subcaves | Ambushed by angry Subdweller bent on revenge 2250 | -10/Subcaves | Core integrity fell below 50% 2306 | -10/Subcaves | Core integrity fell below 20% 2337 | -10/Subcaves | Destroyed by NV-XEE(R) with Subdweller Laser Last Messages --------------- 02112_ Scrap Shield Fragment affixed to Scrap Shield (+49). 02115_ Scrap Shield Fragment affixed to Scrap Shield (+32). 02148_ LLTP 02290_ Acquired 35 matter. 02292_ Lgt. Treads destroyed. 02326_ Dropped Sub. Power Source. Map ----- +----------------------------------------------------+ | ?????????????????????## #?# ## | | ??????????????????????# ## #?# ## | | ??????????????????????##### ### ## | | ??????????????????###???### ## #?# # | | ?????????????????## #### ##### # | | ?????????????????? ## #??# # | | ???????????????????? ## ### #??# # | | ?????????????????????? # " ##"""" #??# ## | | ???????????????????????# # $ = ##"""""""#?##### | | ???????????????????????# #&[! # """ #????# | | ???????????????#???????# !&%=" # #??## | | ???????????????# ??????# #!*" ### ##??# | | ???????????????# ????### ##&"""##?## #???# | | ??????????????## ??## ####"""#???## #???## | | ??????????????# ??# #??#"""" ???# """ ?????? | | ??????????????# ### ##?? """"" ??? " " ?????? | | ??????????????# ##??? "" "????#"????????# | | ??????????????# ##???? "??????????????# | | ??????????????## ########" ?????????????????# | | ???????????????# ## ""# # #???????????????? | | ???????????????## """ #???????????????? | | ????????????????## #????????????????? | | ?????????????????# ## # #????????????????? | | ?????????????????## ###???????####???????????? | | ??????????????????## ####??????# ###?????????? | | ???????????????????## @ ##?###### #?????????? | | ????????????????????# ### ## ###?????????? | | ????????????????????# ### #???????????? | | ????????????????????# R * #???????????# | | ????????????????????# ##???????????? | | ????????????????????# #####????????????? | | ????????????????????# ####????????????????? | | ????????????????????## ####???????????????????? | | ?????????????????????#####??????????????????????? | | ????????????????????????????????????????????????? | | ????????????????????????????????????????????????? | | ????????????????????????????????????????????????? | | ????????????????????????????????????????????????? | | ????????????????????????????????????????????????? | | ????????????????????????????????????????????????? | | ????????????????????????????????????????????????? | | ????????????????????????????????????????????????? | | ????????????????????????????????????????????????? | | ????????????????????????????????????????????????? | | ????????????????????????????????????????????????? | | ????????????????????????????????????????????????? | | ????????????????????????????????????????????????? | | ????????????????????????????????????????????????? | | | | | +----------------------------------------------------+ Best States ------------- Heat Dissipation 25 Energy Generation 15 Energy Capacity 200 Matter Stores 300 Matter Capacity 300 Sight Range 16 Terrain Scan Density 10 Armor Coverage 800 Evasion (%) 50 Recoil Reduction 2 Item Schematics ----------------- Hcp. Storage Unit | -10/Materials | Hacked Robot Schematics ------------------ None Fabricated ------------ Nothing Alien Tech Used ----------------- None Achievements -------------- None Challenges ------------ None Game ------ Seed GhostLinearBarrier Manual? 0 Play Time 00:15:02 Cumulative 640.8 hours Start 2023.07.28 @ 17:54:04 End 2023.08.02 @ 20:43:29 Sessions 6 Manual Loads 0 Difficulty Rogue Special Mode None Game No. 562 Rogue 347 Adventurer 112 Explorer 103 Win Type - Total 42 Types 26/0/8/3/0/0/4/1/0 Lore% 85 Gallery% 91 Achievement% 82 Wizard Run 0 Options --------- ASCII 1 Keyboard 1 Movement Vi Keybinds 1 Fullscreen 2 Font 36/TerminusBold Map View 66x50 Tactical HUD 1 Map Filters NONE Filters NONE Steam 1 RUN: ff8c0729-009f-49b2-beb1-d84b5d4cf22f